Cogmind - Beta 11 X2 @@@ ROGUE MODE // 2021.02.18 @ 01:43:11 Player: RIF-flight-DC attempt Result: Escaped! Performance ------------- Evolutions (9) 4500 Regions Visited (31) 6200 Robots Destroyed (102) 510 Value Destroyed (4158) 4158 Prototype IDs (246) 4920 Alien Tech Used (13) 2600 Bonus (28934) 28934 TOTAL SCORE: 51822 Bonus ------- High Alert Combat Kills 322 Follower Combat Kills 835 Entered Garrisons 1200 Used RIF Installer 3000 Aligned with FarCom 300 Met Data Miner 300 Used Data Conduit 3000 Found Hidden Lab 3000 Decrypted A0 Command 3000 Hacked Protovariant 500 Pursued by Intercept 500 Met MAIN.C 5000 Destroyed MAIN.C Shell 5000 Met Architect 300 Win 3000 Friendly Fire -323 Cogmind --------- Core Integrity 401/1850 Matter 167/300 Energy 132/135 System Corruption 13% Temperature Cool (7) Movement Flying (15) Location To Epsilon Eridani Parts ------- > --- POWER (2) -------- Compact Particle Reactor > --- PROPULSION (9) --- Field Propulsion Array Improved Q-thruster Cooled Q-thruster Cooled Q-thruster Experimental Q-thruster > --- UTILITY (13) ----- Experimental Melee Analysis Suite Force Booster Relay Coupler [Hunter] (14) > --- WEAPON (2) ------- Nanosword Kinetic Spear > --- INVENTORY (7) ---- Centrium Heavy Treads Experimental Biometal Leg Omega Cannon Peak State ------------ > --- POWER ------------ Zero-point Reactor > --- PROPULSION ------- Cooled Impulse Thruster Improved Q-thruster Improved Q-thruster Cooled Q-thruster Cooled Q-thruster Experimental Q-thruster Experimental Q-thruster Experimental Q-thruster > --- UTILITY ---------- Experimental Melee Analysis Suite Microactuators Force Booster Advanced ECM Suite Improved Powered Armor Beam Splitter EM Dispersion Field Relay Coupler [Hunter] Mini Drone Bay Mini Drone Bay Matter Drive > --- WEAPON ----------- Guided Remote Datajack Kinetic Spear > --- INVENTORY -------- Omega Cannon Kinetic Spear [Rating: 200] Favorites ----------- Power Micro Fission Core Engine Light Ion Engine Power Core Micro Fission Core Reactor Zero-point Reactor Propulsion Xenon Bombardment Thruster Treads Centrium Heavy Treads Flight Unit Xenon Bombardment Thruster Utility Relay Coupler [Sentry] Device Advanced ECM Suite Processor Experimental Melee Analysis Suite Hackware Relay Coupler [Sentry] Protection Improved Powered Armor Artifact Matter Drive Weapon Scythe Energy Gun Gamma Rifle Ballistic Gun Light Assault Rifle Ballistic Cannon Improved Light Cannon Launcher Mini Grenade Launcher Special Weapon Guided Remote Datajack Slashing Weapon Scythe Piercing Weapon Lance Special Melee Weapon Datajack Build | -11 -10 -10 -10 -9 -8 -8 -8 -8 -7 -7 -6 -6 -6 -6 -5 -5 -5 -5 -5 -4 -4 -4 -3 -3 -3 -2 -2 -2 -1 -1 -1 ------- Run | Scr Mat Min Exi Min Mat Gar Mat Gar Fac Gar Fac Low Low Dat Pro Fac Gar Fac Gar Fac Arm Lab Res Tes Gar Res Qua Sec Acc Com Ac0 Slots Evolved 18 | . . . . . 4 . . . 2 . 2 . . . . 2 . . . 2 . . 2 . . 2 . . 2 . . Power 1 | . . . . . 1 . . . . . . . . . . . . . . . . . . . . . . . . . . Propulsion 6 | . . . . . 2 . . . . . 1 . . . . . . . . 1 . . . . . . . . 2 . . Utility 11 | . . . . . 1 . . . 2 . 1 . . . . 2 . . . 1 . . 2 . . 2 . . . . . Weapon . | . . . . . . . . . . . . . . . . . . . . . . . . . . . . . . . . Parts Attached 301 | 3 1 2 . . 35 7 7 12 3 11 11 1 . . 4 10 1 5 7 5 9 5 6 3 40 4 7 11 8 45 38 Power 37 | . . . . . 4 1 . 2 . 2 4 . . . 2 . . 2 1 1 4 . 2 1 4 . . . . 5 2 Engine 14 | . . . . . 2 . . 2 . . 3 . . . 1 . . 2 . 1 . . 1 . . . . . . 2 . Core 13 | . . . . . 2 1 . . . 2 1 . . . 1 . . . 1 . 1 . 1 1 2 . . . . . . Reactor 10 | . . . . . . . . . . . . . . . . . . . . . 3 . . . 2 . . . . 3 2 Propulsion 59 | . . . . . 2 . . 3 . 5 3 . . . . 1 . . 2 . 3 . 1 . 6 1 4 1 2 6 19 Treads 1 | . . . . . . . . . . . . . . . . . . . . . . . . . . . . . . . 1 Leg . | . . . . . . . . . . . . . . . . . . . . . . . . . . . . . . . . Wheel . | . . . . . . . . . . . . . . . . . . . . . . . . . . . . . . . . Hover . | . . . . . . . . . . . . . . . . . . . . . . . . . . . . . . . . Flight 58 | . . . . . 2 . . 3 . 5 3 . . . . 1 . . 2 . 3 . 1 . 6 1 4 1 2 6 18 Utility 127 | 1 . 2 . . 15 3 6 1 3 2 4 1 . . 2 7 . 2 2 3 1 3 2 2 22 3 1 4 4 26 5 Device 60 | 1 . 2 . . 7 2 1 . 1 2 3 . . . 2 1 . 1 . 2 1 . 2 1 6 1 1 3 2 16 2 Storage . | . . . . . . . . . . . . . . . . . . . . . . . . . . . . . . . . Processor 13 | . . . . . 3 . 2 . 1 . 1 . . . . 1 . . . . . . . 1 4 . . . . . . Hackware 31 | . . . . . 1 . 2 1 1 . . . . . . 5 . . 2 1 . 2 . . 12 1 . . 1 2 . Protection 17 | . . . . . 4 1 1 . . . . 1 . . . . . 1 . . . 1 . . . 1 . . 1 5 1 Artifact 6 | . . . . . . . . . . . . . . . . . . . . . . . . . . . . 1 . 3 2 Weapon 78 | 2 1 . . . 14 3 1 6 . 2 . . . . . 2 1 1 2 1 1 2 1 . 8 . 2 6 2 8 12 Energy Gun 4 | 1 . . . . . . . . . . . . . . . . . . . . . . . . 3 . . . . . . Energy Cannon . | . . . . . . . . . . . . . . . . . . . . . . . . . . . . . . . . Ballistic Gun 11 | 1 . . . . 5 . . 2 . . . . . . . . . . . . . . . . 3 . . . . . . Ballistic Cannon 4 | . . . . . 2 . . . . . . . . . . . . . . . . . . . . . . . . 1 1 Launcher 9 | . . . . . 1 2 . . . 1 . . . . . 1 1 . 1 1 . 1 . . . . . . . . . Special Weapon 18 | . 1 . . . 1 . . . . . . . . . . . . . . . . 1 1 . 2 . 1 3 1 3 4 Impact Weapon . | . . . . . . . . . . . . . . . . . . . . . . . . . . . . . . . . Slashing Weapon 16 | . . . . . 4 1 1 . . . . . . . . . . . . . . . . . . . 1 3 1 4 1 Piercing Weapon 9 | . . . . . . . . . . . . . . . . 1 . 1 1 . . . . . . . . . . . 6 Special Melee Weapon 7 | . . . . . 1 . . 4 . 1 . . . . . . . . . . 1 . . . . . . . . . . Unidentified Prototypes 17 | . . 1 . . 1 . . . . . . . . . . . . . . . . 5 . . 1 . . 4 . 3 2 Parts Lost 72 | . . . . . . 2 . 2 . 13 2 . 1 3 4 1 1 . 2 1 3 1 4 2 5 . 2 . . 3 20 Power 12 | . . . . . . 1 . . . 3 . . . . 1 1 . . 1 . 1 . . . 1 . . . . 1 2 Propulsion 29 | . . . . . . . . . . 5 2 . . 2 2 . 1 . 1 1 . 1 1 1 1 . 1 . . 1 9 Utility 20 | . . . . . . 1 . 1 . 3 . . . 1 1 . . . . . 1 . 2 . 2 . 1 . . . 7 Weapon 11 | . . . . . . . . 1 . 2 . . 1 . . . . . . . 1 . 1 1 1 . . . . 1 2 Highest Loss Streak 7 | . . . . . . 1 . 1 . 5 2 . 1 3 5 1 2 . 1 1 3 1 4 2 5 . 2 . . 2 7 Average Slot Usage (%) 72 | . 42 42 42 42 65 66 57 73 93 66 88 100 98 91 42 38 60 66 86 77 77 66 56 47 81 91 93 91 90 82 72 Engine 2 | . . . . . 3 2 . 7 13 1 9 6 6 6 6 4 . 5 5 5 1 . 1 . . . . . . . . Core 3 | . . . . . 6 11 . . . 2 1 6 6 6 . . . . 4 5 3 . 2 4 5 8 8 8 8 1 . Flight 18 | . . . . . 12 18 18 25 30 28 32 33 33 33 9 6 6 5 15 10 16 11 6 5 19 26 23 26 28 22 27 Device 11 | . 14 14 14 14 12 10 2 . 4 6 19 26 20 18 4 1 5 8 11 14 18 11 8 6 4 3 1 6 10 20 21 Processor 3 | . . . . . 3 . 12 . 1 . 5 6 6 6 3 1 5 1 . . . . . 2 12 8 5 4 4 4 4 Hackware 17 | . . . . . 1 . . 18 26 15 6 6 6 6 6 15 35 30 33 31 26 28 24 23 29 39 43 39 32 18 5 Protection 3 | . . . . . 6 9 6 5 . . . . 6 6 2 . . 3 . . . 3 1 . . 1 4 . 2 6 2 Ballistic Gun 1 | . 14 14 14 14 2 . . 1 . . . . . . . . . . . . . . . . 1 . . . . . . Special Weapon 1 | . 11 14 14 14 . . . . . . . . . . . . . . . . . . 2 1 1 . 1 . . . . Slashing Weapon 4 | . . . . . 13 8 9 9 7 7 6 6 6 6 6 5 5 5 5 4 . . . . . . 2 3 3 3 . Naked Turns . | . . . . . . . . . . . . . . . . . . . . . . . . . . . . . . . . Heaviest Build 78 | 3 3 3 3 3 19 19 10 13 9 15 16 17 17 15 12 8 6 13 15 19 38 30 25 22 35 21 25 35 33 78 59 Greatest Support 77 | 3 3 3 3 3 19 19 10 18 18 18 20 20 20 20 12 10 10 15 26 22 52 37 32 24 36 37 45 54 68 77 74 Greatest Overweight (x) 2 | . . . . . 1 1 . . . . . . . . 2 . . . . . . . 1 . . . . . . 1 . Average Overweight (x) . | . . . . . . . . . . . . . . . . . . . . . . . . . . . . . . . . Largest Inventory Capacity 7 | 5 5 5 5 5 5 5 5 5 5 5 5 5 5 5 5 5 5 5 5 5 5 5 5 5 5 5 5 7 7 7 7 Average Capacity 5 | 5 5 5 5 5 5 5 5 5 5 5 5 5 5 5 5 5 5 5 5 5 5 5 5 5 5 5 5 5 7 7 7 Most Carried 7 | 4 5 5 5 5 5 5 5 5 5 5 4 4 5 5 5 5 5 5 5 5 5 5 5 5 5 5 5 7 7 7 7 Average Carried 5 | 1 4 4 4 5 4 4 5 4 4 3 3 4 4 4 4 4 4 4 4 4 4 4 4 4 4 4 4 5 6 6 5 Final Capacity 7 | 5 5 5 5 5 5 5 5 5 5 5 5 5 5 5 5 5 5 5 5 5 5 5 5 5 5 5 5 7 7 7 7 Final Carried 7 | 4 5 5 5 5 5 5 5 5 5 4 4 4 5 5 5 4 5 4 5 5 4 5 4 4 5 5 5 5 7 6 5 Class Distribution -------------------- 30% | Mutant 18% | Scavenger-Sprinter 14% | Botlord-Sprinter 7% | Wizard-Mutant 7% | Hacker-Mutant 7% | Bothacker-Sprinter 6% | Sprinter 5% | Hacker-Sprinter Dominant Class ---------------- Mutant | -10/Materials Mutant | -10/Mines Mutant | -10/Exiles Mutant | -9/Mines Mutant | -8/Materials Mutant | -8/Garrison Mutant | -8/Materials Mutant | -8/Garrison Bothacker-Sprinter | -7/Factory Sprinter | -7/Garrison Scavenger-Sprinter | -6/Factory Scavenger-Sprinter | -6/Lower Caves Scavenger-Sprinter | -6/Lower Caves Scavenger-Sprinter | -6/Data Miner Mutant | -5/Proximity Caves Hacker-Mutant | -5/Factory Hacker-Mutant | -5/Garrison Hacker-Mutant | -5/Factory Hacker-Sprinter | -5/Garrison Hacker-Sprinter | -4/Factory Hacker-Mutant | -4/Armory Bothacker-Mutant | -4/Lab Wizard-Mutant | -3/Research Wizard-Mutant | -3/Testing Scavenger-Sprinter | -3/Garrison Botlord-Sprinter | -2/Research Botlord-Sprinter | -2/Quarantine Botlord-Sprinter | -2/Section 7 Botlord-Sprinter | -1/Access Scavenger-Sprinter | -1/Command Sprinter | -1/Access_0 Resources | -11 -10 -10 -10 -9 -8 -8 -8 -8 -7 -7 -6 -6 -6 -6 -5 -5 -5 -5 -5 -4 -4 -4 -3 -3 -3 -2 -2 -2 -1 -1 -1 ----------- Run | Scr Mat Min Exi Min Mat Gar Mat Gar Fac Gar Fac Low Low Dat Pro Fac Gar Fac Gar Fac Arm Lab Res Tes Gar Res Qua Sec Acc Com Ac0 Matter Collected 3289 | 237 . 30 . 1 438 157 63 163 . 109 29 . 20 22 22 92 . 47 26 67 255 . 25 105 640 . 77 88 217 249 110 Remotely 172 | 172 . . . . . . . . . . . . . . . . . . . . . . . . . . . . . . . Salvage Created 5470 | 103 . . . . 1189 312 84 141 . 74 55 . . 22 . 92 41 46 26 67 34 . 86 105 166 . 77 15 319 2416 . Parts 224 | 6 . . . . 54 13 4 19 . 13 2 . . 2 . 3 3 6 3 5 4 . 6 4 11 . 4 2 13 47 . Haulers Intercepted 5 | . . . . . 4 . . . . . . . . . . 1 . . . . . . . . . . . . . . . Recyclers Shooed 9 | . . . . . 5 . . . . . . . . . . . . . . . . . . . . . . . . 4 . Parts Field Recycled . | . . . . . . . . . . . . . . . . . . . . . . . . . . . . . . . . Retrieved Matter . | . . . . . . . . . . . . . . . . . . . . . . . . . . . . . . . . Parts Self-Destructed . | . . . . . . . . . . . . . . . . . . . . . . . . . . . . . . . . Prevented . | . . . . . . . . . . . . . . . . . . . . . . . . . . . . . . . . Kills | -11 -10 -10 -10 -9 -8 -8 -8 -8 -7 -7 -6 -6 -6 -6 -5 -5 -5 -5 -5 -4 -4 -4 -3 -3 -3 -2 -2 -2 -1 -1 -1 ------- Run | Scr Mat Min Exi Min Mat Gar Mat Gar Fac Gar Fac Low Low Dat Pro Fac Gar Fac Gar Fac Arm Lab Res Tes Gar Res Qua Sec Acc Com Ac0 Combat Hostiles Destroyed 51 | . . . . . 7 11 1 11 . 5 1 . . . . . 1 . 2 . 1 . 1 . 4 . 1 . 2 3 . Melee 23 | . . . . . 7 2 1 2 . 2 1 . . . . . . . . . 1 . 1 . . . 1 . 2 3 . Guns 4 | . . . . . . . . . . . . . . . . . . . . . . . . . 4 . . . . . . AOE 24 | . . . . . . 9 . 9 . 3 . . . . . . 1 . 2 . . . . . . . . . . . . Classes Destroyed 13 | 2 . . . . 6 1 . . . . . . . . . . 1 . . . 1 . 2 . . . . . . . . Worker 15 | . . . . . 6 . . . . . 1 . . . . . . 2 . 3 . . . . . . . . . 3 . Builder 3 | . . . . . . . . . . . . . . . . . . . . . . . 1 . . . . 1 1 . . Tunneler 1 | 1 . . . . . . . . . . . . . . . . . . . . . . . . . . . . . . . Hauler 5 | . . . . . 4 . . . . . . . . . . 1 . . . . . . . . . . . . . . . Recycler 15 | 1 . . . . 6 . . . . . . . . . . . . . . . . . . 1 . . . . 1 6 . Operator 4 | . . . . . 1 . 1 . . . . . . . . . . . . . 1 . . . . . . . . 1 . Watcher 6 | . . . . . 1 . . . . . . . . . . . . . . . . . . . . . . . . 5 . Swarmer 21 | . . . . . . 4 . 8 . 5 1 . . . . . . . 2 . . . . . 1 . . . . . . Saboteur 1 | . . . . . . . . . . . . . . . . . . . . . 1 . . . . . . . . . . Grunt 12 | . . . . . 1 6 . 3 . . . . . . . . . . . . . . . . . . 1 . 1 . . Sentry 11 | . . . . . 6 1 1 1 . . . . . . . . . . . . . . . . 1 . . . 1 . . Hunter 2 | . . . . . . . . . . . . . . . . . 1 . . . . . . . 1 . . . . . . Programmer 4 | . . . . . . . . . . . . . . . . . . . . . . . 1 . 1 . . . . 2 . Best Kill Streak 10 | 1 . . . . 7 8 2 10 . 3 1 . . 1 . 1 1 2 2 2 1 . 1 1 2 . 1 1 2 8 . Combat Bots Only 10 | . . . . . 2 8 1 10 . 3 1 . . . . . 1 . 2 . 1 . 1 . 2 . 1 . 1 2 . Max Kills in Single Turn 4 | 1 . . . . 1 4 1 3 . 2 1 . . 1 . 1 1 1 2 1 1 . 1 1 1 . 1 1 1 1 . Gunslinging . | . . . . . . . . . . . . . . . . . . . . . . . . . . . . . . . . Exploded 4 | . . . . . . 4 . 3 . 2 . . . . . . 1 . 2 . . . . . . . . . . . . Melee 1 | . . . . . 1 1 1 1 . 1 1 . . . . . . . . . 1 . 1 . . . 1 . 1 1 . Uniques/NPCs Destroyed 2 | . . . . . . . . . . . . . . 1 . . . . . . . . . . . . . . . 1 . Data Miner (-6/Data Miner) MAIN.C Shell (-1/Command) Combat | -11 -10 -10 -10 -9 -8 -8 -8 -8 -7 -7 -6 -6 -6 -6 -5 -5 -5 -5 -5 -4 -4 -4 -3 -3 -3 -2 -2 -2 -1 -1 -1 -------- Run | Scr Mat Min Exi Min Mat Gar Mat Gar Fac Gar Fac Low Low Dat Pro Fac Gar Fac Gar Fac Arm Lab Res Tes Gar Res Qua Sec Acc Com Ac0 Damage Taken 12306 | . 7 . . . 293 463 58 215 . 936 164 16 48 150 166 53 79 . 215 121 599 73 645 181 700 . 142 772 256 1768 4186 Core 2893 | . . . . . 57 91 28 30 . 257 42 . . 38 36 25 59 . 74 46 195 24 140 57 260 . 41 112 31 76 1174 Absorbed by Shields 186 | . . . . . . 15 . 26 . 136 . . . . . . . . . . . . . . 6 . . . . 3 . Core Remaining (%) 75 | 100 . . . 100 . . . 62 . 63 . . . . 86 . . . 84 . . 100 . . 64 . . 77 . . 21 Volleys Fired 120 | 7 5 . 1 . 30 10 . 9 . 2 . . . . . . 2 . 1 2 . 1 . . 30 . 2 4 1 4 9 Largest 2 | 2 1 . 1 . 1 1 . 1 . 1 . . . . . . 1 . 1 1 . 1 . . 2 . 1 1 1 1 1 Hottest 124 | 60 100 . 20 . 39 30 . 30 . 39 . . . . . . 80 . 80 80 . 40 . . 124 . 40 40 40 40 100 Shots Fired 133 | 14 5 . 1 . 30 10 . 9 . 2 . . . . . . 2 . 1 2 . 1 . . 36 . 2 4 1 4 9 Gun 51 | 14 . . 1 . 13 . . . . . . . . . . . . . . . . . . . 23 . . . . . . Cannon 18 | . . . . . 17 . . . . . . . . . . . . . . . . . . . . . . . . . 1 Launcher 26 | . . . . . . 10 . 9 . 2 . . . . . . 2 . 1 2 . . . . . . . . . . . Special 38 | . 5 . . . . . . . . . . . . . . . . . . . . 1 . . 13 . 2 4 1 4 8 Kinetic 51 | 7 . . 1 . 30 . . . . . . . . . . . . . . . . . . . 12 . . . . . 1 Thermal 19 | 7 5 . . . . . . . . . . . . . . . . . . . . . . . 7 . . . . . . Explosive 26 | . . . . . . 10 . 9 . 2 . . . . . . 2 . 1 2 . . . . . . . . . . . Electromagnetic 4 | . . . . . . . . . . . . . . . . . . . . . . . . . 4 . . . . . . Robot Hit Streak 20 | 7 . . 3 . 5 4 . 2 . 1 . . . . . . . . 2 . . . . . 8 . 9 11 . 14 20 Robot Miss Streak 3 | 1 . . . . 2 3 . 2 . 1 . . . . . . . . . . . . . . 3 . . . . . . Penetration Max . | . . . . . . . . . . . . . . . . . . . . . . . . . . . . . . . . Secondary Targets . | . . . . . . . . . . . . . . . . . . . . . . . . . . . . . . . . Shots Hit Robots 288 | 10 . . 1 . 63 14 7 11 . 7 8 . . 1 . 1 . 2 2 4 4 . 11 1 19 . 2 3 5 97 15 Core Hits 145 | 3 . . . . 26 19 2 19 . 6 2 . . 1 . 1 1 2 2 2 1 . 3 1 12 . 1 . 3 36 2 Critical Hits 25 | . . . . . 3 . 1 . . . . . . . . . . . . . . . . . . . . . 1 20 . Critical Kills 5 | . . . . . 2 . . . . . . . . . . . . . . . . . . . . . . . 1 2 . Critical Parts Destroyed 10 | . . . . . 1 . 1 . . . . . . . . . . . . . . . . . . . . . . 8 . Melee Attacks 444 | . . . . . 70 19 11 23 . 11 20 . . 6 1 13 . 2 7 11 17 3 21 5 . . 6 35 15 123 25 Impact . | . . . . . . . . . . . . . . . . . . . . . . . . . . . . . . . . Slashing 353 | . . . . . 70 19 11 18 . 10 20 . . 6 1 9 . 2 2 1 . . . . . . 6 35 15 123 5 Piercing 82 | . . . . . . . . . . . . . . . . 4 . . 5 10 14 3 21 5 . . . . . . 20 Sneak Attacks 55 | . . . . . 15 2 1 4 . . 4 . . 1 . 1 . 2 . 4 1 . 2 1 . . 1 1 3 12 . Combat Hostiles 7 | . . . . . . 2 . 2 . . 1 . . . . . . . . . . . . . . . 1 . 1 . . Follow-up Attacks 9 | . . . . . 7 . . . . . . . . . . . . . 1 . . . . . . . . . . . 1 Damage Inflicted 23829 | 58 . . . . 2813 1196 327 1391 . 531 551 . . 108 . 147 102 223 269 656 132 . 583 86 358 . 328 328 1247 11892 503 Guns 532 | 58 . . . . 116 . . . . . . . . . . . . . . . . . . . 358 . . . . . . Cannons 19 | . . . . . 19 . . . . . . . . . . . . . . . . . . . . . . . . . . Explosions 2461 | . . . . . . 741 . 1029 . 365 . . . . . . 102 . 205 19 . . . . . . . . . . . Melee 20754 | . . . . . 2678 455 327 362 . 166 551 . . 108 . 147 . 223 64 637 132 . 583 86 . . 275 328 1247 11882 503 Ramming 63 | . . . . . . . . . . . . . . . . . . . . . . . . . . . 53 . . 10 . Kinetic 398 | 25 . . . . 135 . . . . . . . . . . . . . . . . . . . 238 . . . . . . Thermal 93 | 33 . . . . . . . . . . . . . . . . . . . . . . . . 60 . . . . . . Explosive 2461 | . . . . . . 741 . 1029 . 365 . . . . . . 102 . 205 19 . . . . . . . . . . . Electromagnetic 60 | . . . . . . . . . . . . . . . . . . . . . . . . . 60 . . . . . . Impact . | . . . . . . . . . . . . . . . . . . . . . . . . . . . . . . . . Slashing 18855 | . . . . . 2678 455 327 362 . 166 551 . . 108 . . . 223 . . . . . . . . 275 328 1247 11882 253 Piercing 1899 | . . . . . . . . . . . . . . . . 147 . . 64 637 132 . 583 86 . . . . . . 250 Highest Corruption 13 | . . . . . . . . . . . . . . . . . 1 1 1 . . 2 3 . 1 . 8 13 . 8 13 Average Corruption 4 | . . . . . . . . . . . . . . . . . 1 1 1 . . 1 2 . 1 . 8 9 . 3 10 Corruption Purged 3 | . . . . . . . . . . . . . . . . . . . . . . . 3 . . . . . . . . Effects 54 | . . . . . . . . . . . . . . . . . . 1 1 . . 1 4 . 2 . 3 14 . 9 19 Message Errors 11 | . . . . . . . . . . . . . . . . . . 1 . . . 1 1 . 1 . . 3 . . 4 Matter Fused 9 | . . . . . . . . . . . . . . . . . . . . . . . 2 . . . 2 1 . 1 3 Heat Flow Errors 9 | . . . . . . . . . . . . . . . . . . . . . . . . . . . 1 1 . 5 2 Energy Discharges 6 | . . . . . . . . . . . . . . . . . . . 1 . . . 1 . 1 . . 2 . . 1 Parts Rejected 1 | . . . . . . . . . . . . . . . . . . . . . . . . . . . . . . . 1 Data Loss (minor) 6 | . . . . . . . . . . . . . . . . . . . . . . . . . . . . 2 . 3 1 Misdirections 12 | . . . . . . . . . . . . . . . . . . . . . . . . . . . . 5 . . 7 Overload Shots . | . . . . . . . . . . . . . . . . . . . . . . . . . . . . . . . . Overflow Damage 3381 | . . . . . 286 53 87 158 . 37 202 . . . . . . . 34 308 . . 79 . . . . 288 404 1445 . Projectiles . | . . . . . . . . . . . . . . . . . . . . . . . . . . . . . . . . Explosions 127 | . . . . . . 14 . 86 . 27 . . . . . . . . . . . . . . . . . . . . . Melee 3254 | . . . . . 286 39 87 72 . 10 202 . . . . . . . 34 308 . . 79 . . . . 288 404 1445 . Knockbacks 1 | . . . . . 1 . . . . . . . . . . . . . . . . . . . . . . . . . . Impact . | . . . . . . . . . . . . . . . . . . . . . . . . . . . . . . . . Kinetic 1 | . . . . . 1 . . . . . . . . . . . . . . . . . . . . . . . . . . Secondary . | . . . . . . . . . . . . . . . . . . . . . . . . . . . . . . . . Self-Inflicted Damage 248 | . . . . . . 125 . . . 22 . . . . . . . . 43 . . . . . . . 53 . . 5 . Shots 6 | . . . . . . 4 . . . 1 . . . . . . . . 1 . . . . . . . . . . . . Rammed 1 | . . . . . . . . . . . . . . . . . . . . . . . . . . . . . . 1 . Targets Rammed 1 | . . . . . . . . . . . . . . . . . . . . . . . . . . . . . . 1 . Kicked . | . . . . . . . . . . . . . . . . . . . . . . . . . . . . . . . . Crushed . | . . . . . . . . . . . . . . . . . . . . . . . . . . . . . . . . Highest Temperature 213 | 20 . . . . 98 36 . . . 23 4 38 52 15 . . 43 . 45 50 . . . . 60 212 186 213 8 211 142 Average Temperature 45 | 8 . . . . 45 13 . . . 10 1 18 27 7 . . 22 . 27 29 . . . . 24 110 113 48 8 97 58 Received Heat Transfer 1779 | . . . . . 90 186 36 27 . 162 30 . . 24 45 9 . . 9 51 30 . . 51 87 . 9 54 63 333 483 Effects 1 | . . . . . . . . . . . . . . . . . . . . . . . . . . 1 . . . . . Energy Bleed 1 | . . . . . . . . . . . . . . . . . . . . . . . . . . 1 . . . . . Siege Activations 1 | . . . . . . . . . . . . . . . . . . . . . . . . . . . . . . . 1 Total Turns 1 | . . . . . . . . . . . . . . . . . . . . . . . . . . . . . . . 1 Longest Duration 1 | . . . . . . . . . . . . . . . . . . . . . . . . . . . . . . . 1 Robots Corrupted . | . . . . . . . . . . . . . . . . . . . . . . . . . . . . . . . . Combat Hostiles . | . . . . . . . . . . . . . . . . . . . . . . . . . . . . . . . . Parts Fried . | . . . . . . . . . . . . . . . . . . . . . . . . . . . . . . . . Impact Corruptions . | . . . . . . . . . . . . . . . . . . . . . . . . . . . . . . . . Robots Melted . | . . . . . . . . . . . . . . . . . . . . . . . . . . . . . . . . Combat Hostiles . | . . . . . . . . . . . . . . . . . . . . . . . . . . . . . . . . Parts Melted . | . . . . . . . . . . . . . . . . . . . . . . . . . . . . . . . . Heat Transferred 149 | 75 . . . . . . . . . . . . . . . . . . . . . . . . 74 . . . . . . Parts Sabotaged 4 | . . . . . . . . . . . . . . . . . . . . . 4 . . . . . . . . . . Parts Stolen . | . . . . . . . . . . . . . . . . . . . . . . . . . . . . . . . . Parts Stripped . | . . . . . . . . . . . . . . . . . . . . . . . . . . . . . . . . Power Chain Reactions . | . . . . . . . . . . . . . . . . . . . . . . . . . . . . . . . . Missiles Intercepted . | . . . . . . . . . . . . . . . . . . . . . . . . . . . . . . . . Alert | -11 -10 -10 -10 -9 -8 -8 -8 -8 -7 -7 -6 -6 -6 -6 -5 -5 -5 -5 -5 -4 -4 -4 -3 -3 -3 -2 -2 -2 -1 -1 -1 ------- Run | Scr Mat Min Exi Min Mat Gar Mat Gar Fac Gar Fac Low Low Dat Pro Fac Gar Fac Gar Fac Arm Lab Res Tes Gar Res Qua Sec Acc Com Ac0 Peak Influence 1126 | 10 21 7 . . 312 863 474 739 427 246 197 . . . . 215 241 151 135 228 647 . 92 227 592 301 201 640 1126 1055 . Initial 720 | . 6 7 . . . 202 415 308 387 193 97 . . . . 103 150 126 4 70 111 . . 51 170 301 27 112 384 720 . Average 348 | 4 7 7 . . 158 548 377 543 368 196 154 . . . . 139 213 99 115 117 305 . 54 162 475 122 97 411 617 654 . Maximum Alert Level 4 | . . . . . 1 3 2 3 2 1 . . . . . 1 1 . . 1 2 . . 1 2 1 1 2 4 3 . Low Security (%) 39 | 100 100 100 . 100 59 . . . . 60 100 . . . . 96 22 100 100 93 37 . 100 53 3 66 87 21 . . . Level 1 18 | . . . . . 40 35 49 29 54 39 . . . . . 3 77 . . 6 44 . . 46 20 33 12 17 3 . . Level 2 32 | . . . . . . 25 50 64 46 . . . . . . . . . . . 18 . . . 76 . . 61 74 73 . Level 3 9 | . . . . . . 39 . 6 . . . . . . . . . . . . . . . . . . . . 17 26 . Level 4 . | . . . . . . . . . . . . . . . . . . . . . . . . . . . . . 4 . . Level 5 . | . . . . . . . . . . . . . . . . . . . . . . . . . . . . . . . . High Security . | . . . . . . . . . . . . . . . . . . . . . . . . . . . . . . . . Max Security . | . . . . . . . . . . . . . . . . . . . . . . . . . . . . . . . . Squads Dispatched 24 | . 3 . . . 3 . 1 . 1 . 2 . . . . 1 . . . . 2 . 1 3 . . . 5 2 . . Investigation 9 | . 2 . . . 2 . 1 . 1 . 1 . . . . 1 . . . . . . . . . . . . 1 . . Extermination 1 | . . . . . . . . . . . . . . . . . . . . . . . . . . . . 1 . . . Reinforcement 10 | . 1 . . . 1 . . . . . 1 . . . . . . . . . 2 . 1 2 . . . 1 1 . . Assault 2 | . . . . . . . . . . . . . . . . . . . . . . . . 1 . . . 1 . . . Garrison . | . . . . . . . . . . . . . . . . . . . . . . . . . . . . . . . . Intercept 2 | . . . . . . . . . . . . . . . . . . . . . . . . . . . . 2 . . . Construction Impeded 2 | . . . . . 1 . . . . . 1 . . . . . . . . . . . . . . . . . . . . Haulers Reinforced . | . . . . . . . . . . . . . . . . . . . . . . . . . . . . . . . . Alert ID Control Effect 12 | . . . . . . . . . . . . . . . . . . . . . 4 . . . 8 . . . . . . Stealth | -11 -10 -10 -10 -9 -8 -8 -8 -8 -7 -7 -6 -6 -6 -6 -5 -5 -5 -5 -5 -4 -4 -4 -3 -3 -3 -2 -2 -2 -1 -1 -1 --------- Run | Scr Mat Min Exi Min Mat Gar Mat Gar Fac Gar Fac Low Low Dat Pro Fac Gar Fac Gar Fac Arm Lab Res Tes Gar Res Qua Sec Acc Com Ac0 Distress Signals 14 | . 1 . . . 1 . . . . . . . . . . . . . . . 4 . . 1 . 1 . 2 1 3 . Communications Jammed . | . . . . . . . . . . . . . . . . . . . . . . . . . . . . . . . . Distress Signals . | . . . . . . . . . . . . . . . . . . . . . . . . . . . . . . . . Times Spotted 396 | . 4 . . . 14 33 10 24 2 12 5 6 3 4 12 2 4 1 7 14 36 1 5 11 29 2 6 51 31 24 43 Peak Tracking Total 21 | . 3 . 9 . 3 8 5 6 2 7 3 3 3 4 9 2 4 2 4 9 21 1 3 5 6 2 4 14 13 5 12 Tactical Retreats 68 | . . . . . 1 9 1 4 . 1 1 . 1 . 3 1 . . 1 2 5 . 1 3 3 1 2 7 4 7 10 Traps | -11 -10 -10 -10 -9 -8 -8 -8 -8 -7 -7 -6 -6 -6 -6 -5 -5 -5 -5 -5 -4 -4 -4 -3 -3 -3 -2 -2 -2 -1 -1 -1 ------- Run | Scr Mat Min Exi Min Mat Gar Mat Gar Fac Gar Fac Low Low Dat Pro Fac Gar Fac Gar Fac Arm Lab Res Tes Gar Res Qua Sec Acc Com Ac0 Traps Triggered 24 | . . . . . . 5 . 2 . 6 . . . . . . . . 2 . . . 1 . 5 . . . . 3 . Indirectly . | . . . . . . . . . . . . . . . . . . . . . . . . . . . . . . . . Trap Hack Attempts . | . . . . . . . . . . . . . . . . . . . . . . . . . . . . . . . . Triggered . | . . . . . . . . . . . . . . . . . . . . . . . . . . . . . . . . Disarmed . | . . . . . . . . . . . . . . . . . . . . . . . . . . . . . . . . Reprogrammed . | . . . . . . . . . . . . . . . . . . . . . . . . . . . . . . . . Reused 1 | . . . . . . . . . . . . . . . 1 . . . . . . . . . . . . . . . . Traps Extracted . | . . . . . . . . . . . . . . . . . . . . . . . . . . . . . . . . Installed 1 | . . . . . . . . . . . . . . . 1 . . . . . . . . . . . . . . . . Triggered 2 | . . . . . . . . . . . . . 1 . 1 . . . . . . . . . . . . . . . . Machines | -11 -10 -10 -10 -9 -8 -8 -8 -8 -7 -7 -6 -6 -6 -6 -5 -5 -5 -5 -5 -4 -4 -4 -3 -3 -3 -2 -2 -2 -1 -1 -1 ---------- Run | Scr Mat Min Exi Min Mat Gar Mat Gar Fac Gar Fac Low Low Dat Pro Fac Gar Fac Gar Fac Arm Lab Res Tes Gar Res Qua Sec Acc Com Ac0 Machines Disabled 34 | . . . . . . 1 1 2 . . . . . . . . 1 . 1 2 1 1 . 2 3 . 3 5 . 2 9 Max in Single Turn 1 | . . . . . . 1 1 1 . . . . . . . . 1 . 1 1 1 1 . 1 1 . 1 1 . 1 1 Garrison Relay 7 | . . . . . . 1 . 2 . . . . . . . . . . 1 . . . . . 3 . . . . . . Machines Sabotaged . | . . . . . . . . . . . . . . . . . . . . . . . . . . . . . . . . Garrisons Compromised . | . . . . . . . . . . . . . . . . . . . . . . . . . . . . . . . . Overloaded Fab Kills . | . . . . . . . . . . . . . . . . . . . . . . . . . . . . . . . . Fab Network Shutdowns . | . . . . . . . . . . . . . . . . . . . . . . . . . . . . . . . . Hacking | -11 -10 -10 -10 -9 -8 -8 -8 -8 -7 -7 -6 -6 -6 -6 -5 -5 -5 -5 -5 -4 -4 -4 -3 -3 -3 -2 -2 -2 -1 -1 -1 --------- Run | Scr Mat Min Exi Min Mat Gar Mat Gar Fac Gar Fac Low Low Dat Pro Fac Gar Fac Gar Fac Arm Lab Res Tes Gar Res Qua Sec Acc Com Ac0 Machines Accessed 83 | . 3 1 2 . 7 . 3 . 4 . 4 . . 3 . 5 . 3 . 2 4 . 3 6 . 4 2 9 6 12 . Terminals 60 | . 3 . . . 5 . 2 . 2 . 3 . . . . 3 . 2 . 2 2 . 3 3 . 3 2 9 5 11 . Fabricators 3 | . . . . . . . . . . . . . . . . 1 . . . . 2 . . . . . . . . . . Repair Stations 3 | . . . . . . . . . 1 . 1 . . . . . . . . . . . . 1 . . . . . . . Recycling Units 2 | . . . . . 1 . . . . . . . . . . . . . . . . . . . . . . . . 1 . Scanalyzers 1 | . . . . . . . . . . . . . . . . . . . . . . . . 1 . . . . . . . Garrison Access 8 | . . . . . 1 . 1 . 1 . . . . . . 1 . 1 . . . . . 1 . 1 . . 1 . . Total Hacks 211 | . 8 1 2 . 22 . 8 . 10 . 7 . . 14 . 12 . 8 . 5 11 . 13 23 . 7 5 19 10 26 . Successful 123 | . 2 1 2 . 13 . 4 . 5 . 2 . . 14 . 8 . 8 . 1 7 . 7 13 . 5 2 12 5 12 . Failed 88 | . 6 . . . 9 . 4 . 5 . 5 . . . . 4 . . . 4 4 . 6 10 . 2 3 7 5 14 . Catastrophic 13 | . 3 . . . 3 . 1 . 1 . 1 . . . . . . . . . . . . 2 . . . . . 2 . Database Lockouts . | . . . . . . . . . . . . . . . . . . . . . . . . . . . . . . . . Manual 103 | . 8 . 1 . 17 . 5 . 6 . 4 . . . . 6 . 3 . 5 2 . 3 8 . 2 2 11 3 17 . Terminals 156 | . 8 . . . 19 . 6 . 5 . 5 . . . . 7 . 6 . 5 6 . 13 15 . 5 5 19 8 24 . Fabricators 7 | . . . . . . . . . . . . . . . . 2 . . . . 5 . . . . . . . . . . Repair Stations 7 | . . . . . . . . . 2 . 2 . . . . . . . . . . . . 3 . . . . . . . Recycling Units 3 | . . . . . 1 . . . . . . . . . . . . . . . . . . . . . . . . 2 . Scanalyzers 3 | . . . . . . . . . . . . . . . . . . . . . . . . 3 . . . . . . . Garrison Access 18 | . . . . . 2 . 2 . 3 . . . . . . 3 . 2 . . . . . 2 . 2 . . 2 . . Terminal Hacks 75 | . 1 1 2 . 6 . 1 . 1 . 1 . . 14 . 3 . 5 . 1 3 . 6 7 . 5 1 10 4 3 . Record 4 | . . . 1 . . . . . . . . . . 3 . . . . . . . . . . . . . . . . . Part Schematic 5 | . . . . . . . . . . . . . . 4 . . . . . . . . . . . . . 1 . . . Robot Schematic 5 | . . . . . . . . . . . . . . 4 . . . . . . . . . 1 . . . . . . . Robot Analysis 1 | . . . . . 1 . . . . . . . . . . . . . . . . . . . . . . . . . . Prototype ID Bank 5 | . . . . . . . . . . . . . . 3 . . . 1 . . . . 1 . . . . . . . . Open Door 10 | . . 1 . . . . . . . . . . . . . . . . . . . . . . . 1 . 3 4 1 . Level Access Points 2 | . . . . . . . . . . . . . . . . . . . . . . . 1 . . . . . . 1 . Branch Access Points 3 | . . . . . 1 . . . . . 1 . . . . . . . . . . . 1 . . . . . . . . Emergency Access Points 1 | . . . . . . . . . . . . . . . . . . . . . 1 . . . . . . . . . . Terminal Index 2 | . 1 . . . 1 . . . . . . . . . . . . . . . . . . . . . . . . . . Garrison Index 2 | . . . . . 1 . . . . . . . . . . . . . . . . . . . . . . 1 . . . Unreport Threat 7 | . . . . . . . 1 . 1 . . . . . . . . 1 . . . . . . . 2 . 2 . . . Locate Traps 6 | . . . . . . . . . . . . . . . . 1 . 1 . . 1 . 1 2 . . . . . . . Patrol Status 7 | . . . . . 1 . . . . . . . . . . 1 . . . . 1 . . 1 . 1 . 1 . 1 . Recall Reinforcements 1 | . . . . . . . . . . . . . . . . . . . . . . . 1 . . . . . . . . Registered Components 2 | . . . . . . . . . . . . . . . . 1 . 1 . . . . . . . . . . . . . Registered Prototypes 1 | . . . . . . . . . . . . . . . . . . . . . . . . . . . 1 . . . . Zone Layout 8 | . . . . . 1 . . . . . . . . . . . . 1 . 1 . . 1 1 . 1 . 2 . . . EX-Prototype ID Bank 1 | . . . 1 . . . . . . . . . . . . . . . . . . . . . . . . . . . . Protovariant Controls 2 | . . . . . . . . . . . . . . . . . . . . . . . . 2 . . . . . . . Fabricator Hacks 5 | . . . . . . . . . . . . . . . . 2 . . . . 3 . . . . . . . . . . Load Schematic 3 | . . . . . . . . . . . . . . . . 1 . . . . 2 . . . . . . . . . . Build 2 | . . . . . . . . . . . . . . . . 1 . . . . 1 . . . . . . . . . . Repair Station Hacks 2 | . . . . . . . . . 1 . 1 . . . . . . . . . . . . . . . . . . . . Refit 2 | . . . . . . . . . 1 . 1 . . . . . . . . . . . . . . . . . . . . Recycling Unit Hacks . | . . . . . . . . . . . . . . . . . . . . . . . . . . . . . . . . Scanalyzer 2 | . . . . . . . . . . . . . . . . . . . . . . . . 2 . . . . . . . Insert Component 2 | . . . . . . . . . . . . . . . . . . . . . . . . 2 . . . . . . . Garrison Access Hacks 9 | . . . . . 2 . 1 . 2 . . . . . . 1 . 2 . . . . . 1 . . . . . . . Unlock Access 6 | . . . . . 1 . 1 . 1 . . . . . . 1 . 1 . . . . . 1 . . . . . . . Coupler Status 3 | . . . . . 1 . . . 1 . . . . . . . . 1 . . . . . . . . . . . . . Unauthorized Hacks 30 | . 1 . . . 5 . 2 . 1 . . . . . . 2 . 1 . . 1 . 1 3 . . 1 2 1 9 . Terminals 25 | . 1 . . . 4 . 1 . 1 . . . . . . 1 . 1 . . 1 . 1 2 . . 1 2 . 9 . Track 1 | . . . . . . . . . . . . . . . . . . . . . . . . . . . . 1 . . . Assimilate 7 | . . . . . 2 . . . . . . . . . . . . . . . 1 . . . . . . 1 . 3 . Botnet 12 | . 1 . . . 1 . . . 1 . . . . . . 1 . . . . . . 1 1 . . 1 . . 5 . Operators 5 | . . . . . 1 . 1 . . . . . . . . . . 1 . . . . . 1 . . . . . 1 . Fabricators . | . . . . . . . . . . . . . . . . . . . . . . . . . . . . . . . . Repair Stations . | . . . . . . . . . . . . . . . . . . . . . . . . . . . . . . . . Recycling Units 1 | . . . . . 1 . . . . . . . . . . . . . . . . . . . . . . . . . . Reject 1 | . . . . . 1 . . . . . . . . . . . . . . . . . . . . . . . . . . Scanalyzers . | . . . . . . . . . . . . . . . . . . . . . . . . . . . . . . . . Garrison Access 4 | . . . . . . . 1 . . . . . . . . 1 . . . . . . . 1 . . . . 1 . . Reprogram 1 | . . . . . . . . . . . . . . . . . . . . . . . . 1 . . . . . . . Eject 3 | . . . . . . . 1 . . . . . . . . 1 . . . . . . . . . . . . 1 . . Data Cores Recovered . | . . . . . . . . . . . . . . . . . . . . . . . . . . . . . . . . Used . | . . . . . . . . . . . . . . . . . . . . . . . . . . . . . . . . Hacking Detections 70 | . 3 . . . 6 . 3 . 4 . 4 . . . . 5 . 3 . 2 4 . 3 4 . 3 2 8 5 11 . Full Trace Events 7 | . 3 . . . 2 . . . 1 . 1 . . . . . . . . . . . . . . . . . . . . Feedback Events . | . . . . . . . . . . . . . . . . . . . . . . . . . . . . . . . . Feedback Blocked . | . . . . . . . . . . . . . . . . . . . . . . . . . . . . . . . . Robot Schematics Acquired 5 | . . . . . . . . . . . . . . 4 . . . . . . . . . 1 . . . . . . . Robots Built 4 | . . . . . . . . . . . . . . . . . . . . . 4 . . . . . . . . . . Matter 252 | . . . . . . . . . . . . . . . . . . . . . 252 . . . . . . . . . . Time 67 | . . . . . . . . . . . . . . . . . . . . . 67 . . . . . . . . . . Total Robot Build Rating 16 | . . . . . . . . . . . . . . . . . . . . . 16 . . . . . . . . . . Part Schematics Acquired 5 | . . . . . . . . . . . . . . 4 . . . . . . . . . . . . . 1 . . . Parts Built 1 | . . . . . . . . . . . . . . . . 1 . . . . . . . . . . . . . . . Matter 318 | . . . . . . . . . . . . . . . . 318 . . . . . . . . . . . . . . . Time 56 | . . . . . . . . . . . . . . . . 56 . . . . . . . . . . . . . . . Total Part Build Rating 6 | . . . . . . . . . . . . . . . . 6 . . . . . . . . . . . . . . . Parts Repaired . | . . . . . . . . . . . . . . . . . . . . . . . . . . . . . . . . Time . | . . . . . . . . . . . . . . . . . . . . . . . . . . . . . . . . Parts Recycled . | . . . . . . . . . . . . . . . . . . . . . . . . . . . . . . . . Recycled Matter . | . . . . . . . . . . . . . . . . . . . . . . . . . . . . . . . . Retrieved Matter . | . . . . . . . . . . . . . . . . . . . . . . . . . . . . . . . . Retrieved Components . | . . . . . . . . . . . . . . . . . . . . . . . . . . . . . . . . Parts Scanalyzed . | . . . . . . . . . . . . . . . . . . . . . . . . . . . . . . . . Part Schematics Acquired . | . . . . . . . . . . . . . . . . . . . . . . . . . . . . . . . . Parts Damaged . | . . . . . . . . . . . . . . . . . . . . . . . . . . . . . . . . Bothacking | -11 -10 -10 -10 -9 -8 -8 -8 -8 -7 -7 -6 -6 -6 -6 -5 -5 -5 -5 -5 -4 -4 -4 -3 -3 -3 -2 -2 -2 -1 -1 -1 ------------ Run | Scr Mat Min Exi Min Mat Gar Mat Gar Fac Gar Fac Low Low Dat Pro Fac Gar Fac Gar Fac Arm Lab Res Tes Gar Res Qua Sec Acc Com Ac0 Used RIF Installer 6 | . . . . . . 1 . 1 . 1 . . . . . . 1 . 1 . . . . . 1 . . . . . . Coupler Efficiency 1 | . . . . . . . . . . . . . . . . . . . 1 . . . . . . . . . . . . Command Fork 1 | . . . . . . . . . . 1 . . . . . . . . . . . . . . . . . . . . . Robot Detection 1 | . . . . . . . . 1 . . . . . . . . . . . . . . . . . . . . . . . Alert ID Control 1 | . . . . . . . . . . . . . . . . . 1 . . . . . . . . . . . . . . Autooverride 1 | . . . . . . . . . . . . . . . . . . . . . . . . . 1 . . . . . . Robots Hacked 35 | . . . . . . . . 4 . 1 . . . . . . . . . . 2 1 . . 12 . 3 4 2 3 3 Non-combat 2 | . . . . . . . . . . . . . . . . . . . . . . . . . . . . 1 . 1 . Combat 29 | . . . . . . . . 4 . 1 . . . . . . . . . . 2 . . . 12 . 3 3 2 2 . Autooverrided 3 | . . . . . . . . . . . . . . . . . . . . . . . . . . . 1 . 1 1 . Robot Hacks Applied 30 | . . . . . . . . 4 . 1 . . . . . . . . . . 2 . . . 12 . 2 4 1 4 . ignore_parts 1 | . . . . . . . . . . . . . . . . . . . . . . . . . . . . 1 . . . purge_threat 3 | . . . . . . . . . . . . . . . . . . . . . . . . . . . . . . 3 . disable_scanner 1 | . . . . . . . . . . . . . . . . . . . . . . . . . . . 1 . . . . locate_prototypes 4 | . . . . . . . . . . . . . . . . . . . . . . . . . . . 1 3 . . . wipe_record 3 | . . . . . . . . 2 . . . . . . . . . . . . . . . . . . . . 1 . . overwrite_iff 7 | . . . . . . . . 2 . . . . . . . . . . . . . . . . 5 . . . . . . streamctrl_high 2 | . . . . . . . . . . . . . . . . . . . . . 2 . . . . . . . . . . formatsys_high 9 | . . . . . . . . . . 1 . . . . . . . . . . . . . . 7 . . . . 1 . Manual 4 | . . . . . . . . . . . . . . . . . . . . . . 1 . . . . . . . . 3 Relay Couplers Released 40 | . . . . . . 5 4 7 . . . . . . . 3 . . 4 . . . . . 13 . . . 4 . . Ejected 11 | . . . . . . . 4 . . . . . . . . 3 . . . . . . . . . . . . 4 . . Machine Destruction 29 | . . . . . . 5 . 7 . . . . . . . . . . 4 . . . . . 13 . . . . . . Attached 23 | . . . . . . . 2 1 1 . . . . . . 3 . . 2 . . 1 . . 12 . . . 1 . . Robots Rewired 2 | . . . . . . . . . . . . . . . . . . . . 1 . . . 1 . . . . . . . Allies Hacked 1 | . . . . . . . . . . . . . . . . . . . . . . . . . 1 . . . . . . Hacks Repelled . | . . . . . . . . . . . . . . . . . . . . . . . . . . . . . . . . Allies | -11 -10 -10 -10 -9 -8 -8 -8 -8 -7 -7 -6 -6 -6 -6 -5 -5 -5 -5 -5 -4 -4 -4 -3 -3 -3 -2 -2 -2 -1 -1 -1 -------- Run | Scr Mat Min Exi Min Mat Gar Mat Gar Fac Gar Fac Low Low Dat Pro Fac Gar Fac Gar Fac Arm Lab Res Tes Gar Res Qua Sec Acc Com Ac0 Total Allies 32 | . . . . . 1 . . 2 . 1 . . . . . . . . . 1 6 . . 1 12 . 1 1 1 5 . Largest Group 6 | . . . . . 1 . . 1 . 1 . . . . . . . . . 1 4 . . 1 6 . 1 1 1 2 . Highest-Rated Group 330 | . . . . . 10 . . 3 . 21 . . . . . . . . . 49 124 . . 127 330 . 58 26 58 88 . Highest-Rated Ally 127 | . . . . . 10 . . 3 . 21 . . . . . . . . . 49 56 . . 127 127 . 58 26 58 69 . Total Orders 11 | . . . . . 5 . . . . . . . . . . . . . . . . . . . . . . . . 5 1 STAY 6 | . . . . . 3 . . . . . . . . . . . . . . . . . . . . . . . . 3 . FOLLOW 3 | . . . . . 2 . . . . . . . . . . . . . . . . . . . . . . . . 1 . EXPLORE 1 | . . . . . . . . . . . . . . . . . . . . . . . . . . . . . . . 1 RETURN 1 | . . . . . . . . . . . . . . . . . . . . . . . . . . . . . . 1 . Ally Attacks 101 | . . . . . . . . 3 . 5 . . . . . . . . . 1 17 . . . 70 . . . 2 3 . Total Damage 3770 | . . . . . . . . 42 . 55 . . . . . . . . . 69 637 . . . 2674 . . . 90 203 . Kills 21 | . . . . . . . . 1 . . . . . . . . . . . . 4 . . . 16 . . . . . . Allies Corrupted 2 | . . . . . . . . . . . . . . . . . . . . . . . . . 2 . . . . . . Allies Melted 1 | . . . . . . . . . . . . . . . . . . . . . . . . . 1 . . . . . . Turrets Deployed 1 | . . . . . . . . . . . . . . . . . . . . . . . . . 1 . . . . . . Intel | -11 -10 -10 -10 -9 -8 -8 -8 -8 -7 -7 -6 -6 -6 -6 -5 -5 -5 -5 -5 -4 -4 -4 -3 -3 -3 -2 -2 -2 -1 -1 -1 ------- Run | Scr Mat Min Exi Min Mat Gar Mat Gar Fac Gar Fac Low Low Dat Pro Fac Gar Fac Gar Fac Arm Lab Res Tes Gar Res Qua Sec Acc Com Ac0 Robot Analysis Total 116 | . . . . . 1 . . . . . . . . 115 . . . . . . . . . . . . . . . . . Derelict Logs Recovered 2 | . . . . . . . . . . . . . 1 . 1 . . . . . . . . . . . . . . . . Drone Launches 14 | . . . . . . . . . . 2 . . . . . . . . . . . . . . . . . . . 2 10 Drone Recoveries 6 | . . . . . . . . . . . . . . . . . . . . . . . . . . . . . . 2 4 Exploration | -11 -10 -10 -10 -9 -8 -8 -8 -8 -7 -7 -6 -6 -6 -6 -5 -5 -5 -5 -5 -4 -4 -4 -3 -3 -3 -2 -2 -2 -1 -1 -1 ------------- Run | Scr Mat Min Exi Min Mat Gar Mat Gar Fac Gar Fac Low Low Dat Pro Fac Gar Fac Gar Fac Arm Lab Res Tes Gar Res Qua Sec Acc Com Ac0 Turns Passed 6981 | 58 121 29 145 81 761 527 103 239 100 197 173 54 78 45 110 198 53 86 268 108 160 81 322 147 439 80 133 352 211 1188 334 Spaces Moved 11889 | 57 131 48 277 162 971 608 167 309 243 233 279 224 335 104 282 250 113 203 197 204 258 142 271 292 408 300 387 779 523 1869 1263 Core 698 | 57 131 48 277 162 22 . . . . . . . . . . . . . . . . . . . 1 . . . . . . Treads . | . . . . . . . . . . . . . . . . . . . . . . . . . . . . . . . . Legs . | . . . . . . . . . . . . . . . . . . . . . . . . . . . . . . . . Wheels . | . . . . . . . . . . . . . . . . . . . . . . . . . . . . . . . . Hover . | . . . . . . . . . . . . . . . . . . . . . . . . . . . . . . . . Flight 11191 | . . . . . 949 608 167 309 243 233 279 224 335 104 282 250 113 203 197 204 258 142 271 292 407 300 387 779 523 1869 1263 Fastest Speed 7 | 50 50 50 50 50 37 37 37 31 31 27 23 23 23 23 29 32 32 35 26 29 27 35 39 39 25 23 23 21 17 17 7 Average Speed 28 | 50 50 50 50 50 40 37 37 33 31 30 23 23 23 23 34 34 33 35 30 31 32 40 46 39 29 24 24 21 18 23 11 Slowest Speed 195 | 50 50 50 50 50 110 107 37 37 31 37 29 23 23 29 195 35 35 35 35 32 37 42 125 40 50 26 28 23 21 104 52 Overloaded Moves 215 | . . . . . . . . . . . . . . . . . 7 . 16 6 7 . . . . . . . . 58 121 Propulsion Burnouts . | . . . . . . . . . . . . . . . . . . . . . . . . . . . . . . . . Robots Hopped 61 | . . . . . 10 1 . . 1 . . . 1 . . 2 1 2 . . 8 . 5 4 . . 2 4 4 3 13 Cave-ins Triggered . | . . . . . . . . . . . . . . . . . . . . . . . . . . . . . . . . Teleports 4 | . . . . . . . . . . . . . . . . . . . . . . . . . . . . 2 . 1 1 Exploration Rate (%) 38 | 3 38 10 68 33 38 73 26 44 7 56 7 47 61 77 56 11 35 6 41 8 35 97 13 38 60 11 48 61 18 43 59 Regions Visited 31 Branch Regions 14 Pre-discovered Areas 28 | . . . 1 . . . . . . . . . . 27 . . . . . . . . . . . . . . . . . Known Exits Taken 8 | . . . . . 1 . 1 . 1 . 1 . . . . 1 . 1 . . . . 1 1 . . . . . . . Unknown Exits Taken 17 | 1 1 1 1 1 . . . . . . . 1 1 1 1 . . . . 1 1 1 . . . 1 1 1 1 1 . Scrap Searched 9 | . . 1 . 2 . . . . . . . 1 1 . 4 . . . . . . . . . . . . . . . . Spaces Dug 151 | . 4 . . . 6 15 3 9 . . 11 . . 1 1 12 . . 2 18 9 . 3 2 . . 3 27 10 10 5 Terrain Destroyed 255 | . 5 . . . 7 64 3 30 . 3 11 . . 1 1 12 14 . 9 26 9 . 3 2 . . 3 27 10 10 5 Melee 108 | . . . . . 4 . 3 . . . 11 . . 1 1 12 . . 2 5 9 . 3 2 . . 3 27 10 10 5 Projectile 8 | . 5 . . . 3 . . . . . . . . . . . . . . . . . . . . . . . . . . AOE 139 | . . . . . . 64 . 30 . 3 . . . . . . 14 . 7 21 . . . . . . . . . . . Terrain Rammed 1 | . . . . . . . . . . . . . . . . . . . . . . . . . . . 1 . . . . Walls Destroyed . | . . . . . . . . . . . . . . . . . . . . . . . . . . . . . . . . Machines Disabled 1 | . . . . . . . . . . . . . . . . . . . . . . . . . . . 1 . . . . Actions | -11 -10 -10 -10 -9 -8 -8 -8 -8 -7 -7 -6 -6 -6 -6 -5 -5 -5 -5 -5 -4 -4 -4 -3 -3 -3 -2 -2 -2 -1 -1 -1 --------- Run | Scr Mat Min Exi Min Mat Gar Mat Gar Fac Gar Fac Low Low Dat Pro Fac Gar Fac Gar Fac Arm Lab Res Tes Gar Res Qua Sec Acc Com Ac0 Total 14575 | 71 170 53 283 161 1205 874 190 400 266 336 362 225 334 116 295 336 124 211 394 230 297 159 428 312 681 306 410 881 603 2473 1389 Wait 1401 | 1 33 . . . 87 136 1 23 18 34 48 . . 2 1 63 9 2 165 2 19 . 131 11 142 . . 30 51 353 39 Move 11745 | 56 130 47 276 161 950 605 166 308 240 232 278 223 332 103 281 246 110 198 196 203 243 141 260 284 407 299 383 770 514 1864 1239 Hop 51 | . . . . . 10 1 . . 1 . . . 1 . . 1 1 2 . . 6 . 5 3 . . 1 4 4 1 10 Pick Up 68 | 4 1 1 3 . 1 7 . 1 1 2 1 . 1 2 1 2 . . 2 . 1 3 1 . 2 1 2 4 4 11 9 Fast Attach 214 | 3 . 1 . . 32 5 6 6 2 7 8 1 . . 1 7 . 4 5 2 7 4 5 2 32 3 2 15 5 27 22 Attach 71 | . . 1 . . 1 3 . 3 1 3 2 . . . 2 2 . 1 1 1 2 3 1 1 3 1 2 5 3 15 14 Detach 76 | . . . . . 6 3 2 2 1 1 1 . . . 2 . 1 2 2 3 . 2 . 2 13 . 2 5 2 16 8 Swap 32 | . 1 . . . 2 . 1 3 . 1 1 . . . 1 1 1 . 1 2 . . . . 5 . 3 . . 5 4 Drop 149 | . . 3 3 . 25 13 3 2 2 . 3 1 . 3 4 1 . . 2 2 2 2 4 3 7 2 6 9 4 31 12 Fire 120 | 7 5 . 1 . 30 10 . 9 . 2 . . . . . . 2 . 1 2 . 1 . . 30 . 2 4 1 4 9 Melee 430 | . . . . . 61 19 11 23 . 11 20 . . 6 1 13 . 2 5 10 17 3 21 5 . . 6 35 15 123 23 Ram 2 | . . . . . . . . . . . . . . . . . . . . . . . . . . . 1 . . 1 . Kick . | . . . . . . . . . . . . . . . . . . . . . . . . . . . . . . . . Crush . | . . . . . . . . . . . . . . . . . . . . . . . . . . . . . . . . Escape Stasis 210 | . . . . . . 72 . 20 . 42 . . . . . . . . 14 . . . . . 40 . . . . 22 . Rewire 5 | . . . . . . . . . . 1 . . . . . . . . . 3 . . . 1 . . . . . . . Trap 1 | . . . . . . . . . . . . . . . 1 . . . . . . . . . . . . . . . . Miscellaneous . | . . . . . . . . . . . . . . . . . . . . . . . . . . . . . . . . Route ------- -11/Scrapyard -10/Materials (discovered 2 exits: [*Mat] / *Min) -10/Mines -10/Exiles -9/Mines -8/Materials -8/Garrison (discovered 3 exits: *Mat x3) -8/Materials (discovered 2 exits: *Fac / Gar) -8/Garrison -7/Factory -7/Garrison (discovered 2 exits: *Fac x2) -6/Factory (discovered 2 exits: *Low x2) -6/Lower Caves -6/Lower Caves (discovered 2 exits: *Fac / *Dat) -6/Data Miner -5/Proximity Caves -5/Factory -5/Garrison -5/Factory -5/Garrison -4/Factory -4/Armory (discovered 2 exits: *Res / *Lab) -4/Lab -3/Research (discovered 5 exits: Res x3 / *Tes x2) -3/Testing -3/Garrison -2/Research -2/Quarantine (discovered 2 exits: *Acc / *Sec) -2/Section 7 -1/Access -1/Command (discovered 3 exits: *Sur x2 / [*Ac0]) -1/Access_0 To Epsilon Eridani History --------- Turn | Location | Event 2 | -11/Scrapyard | Discovered new exit (range 16) 59 | -11/Scrapyard | Entered Materials 145 | -10/Materials | Discovered new exit (range 14) 178 | -10/Materials | Discovered new exit (range 6) 180 | -10/Materials | Entered Mines 186 | -10/Mines | Found the Drone Emporium 189 | -10/Mines | Found Prototype Device 189 | -10/Mines | Identified Bomb Drone Bay 204 | -10/Mines | Deemed a non-threat by the Exiles lab entrance 204 | -10/Mines | Discovered new exit (range 5) 209 | -10/Mines | Entered Exiles 222 | -10/Exiles | Met 8R-AWN 230 | -10/Exiles | Met EX-HEX 249 | -10/Exiles | Met EX-DEC 257 | -10/Exiles | Learned location of Zion (-7) 274 | -10/Exiles | Met EX-BIN 281 | -10/Exiles | Aligned with FarCom system 281 | -10/Exiles | Given EX-Vault access code 293 | -10/Exiles | Opened EX-Vault 298 | -10/Exiles | Found Deploy-a-Sentry 300 | -10/Exiles | Found Deploy-a-Sentry 301 | -10/Exiles | Found Deploy-a-Sentry 313 | -10/Exiles | Warned to stay clear of 0b10 Research branches 318 | -10/Exiles | Build established: Mutant 336 | -10/Exiles | Attacked by the Exiles 348 | -10/Exiles | Discovered new exit (range 14) 354 | -10/Exiles | Left Exiles lab with Deploy-a-Sentry 354 | -10/Exiles | Entered Mines 401 | -9/Mines | Discovered new exit (range 7) 435 | -9/Mines | Entered Materials 435 | -8/Materials | Evolved 4 slots: Power x1, Propulsion x2, Utility x1 1192 | -8/Materials | Identified exit to Garrison 1196 | -8/Materials | Entered Garrison 1214 | -8/Garrison | Triggered checkpoint 1276 | -8/Garrison | Garrison Relay disabled 1517 | -8/Garrison | Triggered checkpoint 1554 | -8/Garrison | Destroyed 8 combat bots 1580 | -8/Garrison | Discovered new exit (range 15) 1617 | -8/Garrison | Discovered new exit (range 12) 1677 | -8/Garrison | Discovered new exit (range 8) 1683 | -8/Garrison | Installed Relay Interface Framework 1694 | -8/Garrison | Triggered checkpoint 1723 | -8/Garrison | Entered Materials 1766 | -8/Materials | Discovered new exit (range 16) 1820 | -8/Materials | Identified exit to Garrison 1826 | -8/Materials | Entered Garrison 1836 | -8/Garrison | Triggered checkpoint 1865 | -8/Garrison | Garrison Relay disabled 1896 | -8/Garrison | Triggered checkpoint 1943 | -8/Garrison | Destroyed 10 combat bots 2015 | -8/Garrison | Discovered new exit (range 12) 2021 | -8/Garrison | Expanded RIF knowledge: Robot Detection 2046 | -8/Garrison | Triggered checkpoint 2049 | -8/Garrison | Garrison Relay disabled 2065 | -8/Garrison | Entered Factory 2065 | -7/Factory | Evolved 2 slots: Utility x2 2161 | -7/Factory | Identified exit to Garrison 2165 | -7/Factory | Entered Garrison 2180 | -7/Garrison | Triggered checkpoint 2180 | -7/Garrison | Triggered checkpoint 2215 | -7/Garrison | Discovered new exit (range 14) 2225 | -7/Garrison | Lost 5 parts (2p1n1u1w) 2294 | -7/Garrison | Lost 3 parts (1n1u1w) 2356 | -7/Garrison | Discovered new exit (range 12) 2360 | -7/Garrison | Expanded RIF knowledge: Command Fork 2362 | -7/Garrison | Entered Factory 2362 | -6/Factory | Evolved 2 slots: Propulsion x1, Utility x1 2379 | -6/Factory | Lost 5 parts (1p3n1u) 2430 | -6/Factory | Discovered new exit (range 5) 2503 | -6/Factory | Identified exit to Lower Caves 2535 | -6/Factory | Entered Lower Caves 2535 | -6/Lower Caves | Spotted RM-RKY(f) 2535 | -6/Lower Caves | Spotted C8-O7T(f) 2536 | -6/Lower Caves | Encountered a Master Thief 2536 | -6/Lower Caves | Encountered a Master Thief 2553 | -6/Lower Caves | Spotted B-75 Beast 2570 | -6/Lower Caves | Encountered a Warlord checkpoint 2588 | -6/Lower Caves | Discovered new exit (range 7) 2589 | -6/Lower Caves | Entered another Lower Caves area 2590 | -6/Lower Caves | Discovered new exit (range 13) 2596 | -6/Lower Caves | Spotted B-75 Beast 2607 | -6/Lower Caves | Encountered a Warlord checkpoint 2630 | -6/Lower Caves | Learned Factory terminal intel 2645 | -6/Lower Caves | Build established: Scavenger-Sprinter 2667 | -6/Lower Caves | Discovered new exit (range 3) 2667 | -6/Lower Caves | Entered Data Miner 2667 | -6/Data Miner | Discovered new exit (range 6) 2672 | -6/Data Miner | Met Data Miner 2676 | -6/Data Miner | Learned location of Section 7 (-2) 2676 | -6/Data Miner | Acquired the access code to Warlord's prototype stash 2680 | -6/Data Miner | Received God Mode back door access code from Data Miner 2686 | -6/Data Miner | Destroyed Data Miner 2688 | -6/Data Miner | Found Prototype Hackware 2689 | -6/Data Miner | Interfaced with the Data Conduit 2712 | -6/Data Miner | Entered Proximity Caves 2760 | -5/Proximity Caves | Lost 5 parts (1p3n1u) 2761 | -5/Proximity Caves | Identified Deep Network Scanner 2763 | -5/Proximity Caves | Attracted the attention of an 0b10 checkpoint 2791 | -5/Proximity Caves | Learned Factory terminal intel 2819 | -5/Proximity Caves | Discovered new exit (range 8) 2822 | -5/Proximity Caves | Entered Factory 2822 | -5/Factory | Evolved 2 slots: Utility x2 2823 | -5/Factory | Loaded intel: 239 machine locations 2824 | -5/Factory | Loaded intel: 20 terminal locations 2892 | -5/Factory | Fabricated Mni. Smartbomb Launcher (x1) 3014 | -5/Factory | Identified exit to Garrison 3020 | -5/Factory | Entered Garrison 3021 | -5/Garrison | Loaded intel: 18 machine locations 3032 | -5/Garrison | Triggered checkpoint 3034 | -5/Garrison | Triggered checkpoint 3059 | -5/Garrison | Spotted B-75 Beast 3068 | -5/Garrison | Discovered new exit (range 8) 3072 | -5/Garrison | Expanded RIF knowledge: Alert ID Control 3073 | -5/Garrison | Entered Factory 3074 | -5/Factory | Loaded intel: 243 machine locations 3075 | -5/Factory | Loaded intel: 19 terminal locations 3086 | -5/Factory | Identified exit to Garrison 3159 | -5/Factory | Entered Garrison 3160 | -5/Garrison | Loaded intel: 19 machine locations 3180 | -5/Garrison | Triggered checkpoint 3199 | -5/Garrison | Garrison Relay disabled 3391 | -5/Garrison | Spotted B-75 Beast 3396 | -5/Garrison | Triggered checkpoint 3420 | -5/Garrison | Discovered new exit (range 15) 3426 | -5/Garrison | Expanded RIF knowledge: Coupler Efficiency 3427 | -5/Garrison | Entered Factory 3427 | -4/Factory | Evolved 2 slots: Propulsion x1, Utility x1 3428 | -4/Factory | Loaded intel: 268 machine locations 3533 | -4/Factory | Discovered new exit (range 9) 3535 | -4/Factory | Entered Armory 3536 | -4/Armory | Loaded intel: 77 machine locations 3616 | -4/Armory | Fabricated S-27 Virus? 3665 | -4/Armory | Discovered new exit (range 3) 3687 | -4/Armory | Spotted B-86 Titan 3691 | -4/Armory | Discovered new exit (range 2) 3694 | -4/Armory | Lost 3 parts (1p1u1w) 3695 | -4/Armory | Entered Lab 3695 | -4/Lab | Discovered new exit (range 9) 3699 | -4/Lab | Hidden lab's door opened automatically 3699 | -4/Lab | Sensor layout match revealed 3700 | -4/Lab | Gained access to the hidden lab's interior 3701 | -4/Lab | Detected by scanners 3708 | -4/Lab | Found Alien Artifact 3708 | -4/Lab | Identified Integrated Reactor 3708 | -4/Lab | Installed Integrated Reactor, increased core energy generation (+10) 3711 | -4/Lab | Confronted by A5 3718 | -4/Lab | Found Prototype Protection 3718 | -4/Lab | Identified Med. Regenerative Plating 3721 | -4/Lab | Found Prototype Hackware 3731 | -4/Lab | Found Prototype Special Weapon 3731 | -4/Lab | Identified Gui. Remote Datajack 3732 | -4/Lab | Destroyed A5 with decrypted code from the hidden lab 3740 | -4/Lab | Decrypted terminal 3756 | -4/Lab | Found Alien Artifact 3756 | -4/Lab | Identified Core Regenerator 3756 | -4/Lab | Used Core Regenerator, restored core integrity (+265) 3764 | -4/Lab | Identified Quantum Router 3766 | -4/Lab | Found Alien Artifact 3770 | -4/Lab | Found Alien Artifact 3776 | -4/Lab | Entered Research 3776 | -3/Research | Evolved 2 slots: Utility x2 3777 | -3/Research | Loaded intel: 95 machine locations 3812 | -3/Research | Identified exit to Research 3812 | -3/Research | Identified exit to Testing 3890 | -3/Research | Spotted B-86 Titan 3897 | -3/Research | Lost 4 parts (1n2u1w) 4064 | -3/Research | Build established: Wizard-Mutant 4098 | -3/Research | Entered Testing 4099 | -3/Testing | Loaded intel: 76 machine locations 4154 | -3/Testing | Protovariant out of control (PH-TWNBID6LAZ) 4154 | -3/Testing | Unleashed a protovariant (PH-TWNBID6LAZ) 4164 | -3/Testing | Found Exp. Terrain Scan Processor 4213 | -3/Testing | Identified Transdimensional Reconstructor 4213 | -3/Testing | Identified Core Reset Matrix 4219 | -3/Testing | Spotted PL-3CAOYMJPBP 4221 | -3/Testing | Rewired PL-3CAOYMJPBP 4232 | -3/Testing | Identified exit to Garrison 4245 | -3/Testing | Entered Garrison 4245 | -3/Garrison | Accompanied by 1 ally 4246 | -3/Garrison | Loaded intel: 19 machine locations 4253 | -3/Garrison | DAS Turret deployed 4279 | -3/Garrison | Found Exp. Core Analyzer 4317 | -3/Garrison | Found Exp. Melee Analysis Suite 4331 | -3/Garrison | Garrison Relay disabled 4339 | -3/Garrison | Lost 5 parts (1p1n2u1w) 4388 | -3/Garrison | P-80 Master assimilated allied Plague 8c 4438 | -3/Garrison | Spotted B-86 Titan 4442 | -3/Garrison | Triggered checkpoint 4456 | -3/Garrison | Triggered checkpoint 4466 | -3/Garrison | Garrison Relay disabled 4518 | -3/Garrison | Triggered checkpoint 4560 | -3/Garrison | Triggered checkpoint 4562 | -3/Garrison | Triggered checkpoint 4569 | -3/Garrison | Allies destroyed B-86 Titan 4592 | -3/Garrison | Discovered exit to Research (range 8) 4595 | -3/Garrison | Expanded RIF knowledge: Autooverride 4624 | -3/Garrison | Triggered checkpoint 4637 | -3/Garrison | Garrison Relay disabled 4684 | -3/Garrison | Entered Research 4684 | -2/Research | Evolved 2 slots: Utility x2 4685 | -2/Research | Loaded intel: 107 machine locations 4763 | -2/Research | Discovered new exit (range 8) 4764 | -2/Research | Entered Quarantine 4765 | -2/Quarantine | Loaded intel: 97 machine locations 4806 | -2/Quarantine | Found Sigix Broadsword 4837 | -2/Quarantine | Found Alien Artifact 4850 | -2/Quarantine | Discovered new exit (range 8) 4855 | -2/Quarantine | Found Alien Impact Weapon 4879 | -2/Quarantine | Spotted Fortress 4897 | -2/Quarantine | Discovered new exit (range 5) 4897 | -2/Quarantine | Entered Section 7 4898 | -2/Section 7 | Loaded intel: 141 machine locations 4924 | -2/Section 7 | Build established: Botlord-Sprinter 4952 | -2/Section 7 | Found Exp. Thermal Shield 5002 | -2/Section 7 | Spotted B-90 Cyclops 5072 | -2/Section 7 | System corruption reached 10% 5073 | -2/Section 7 | Found Integrated Dissipator 5073 | -2/Section 7 | Installed Integrated Dissipator, increased core heat dissipation (+20) 5076 | -2/Section 7 | Spotted B-90 Cyclops 5091 | -2/Section 7 | Found Integrated Mediator 5091 | -2/Section 7 | Installed Integrated Mediator, increased core attachment efficiency. 5130 | -2/Section 7 | Spotted Executioner 5138 | -2/Section 7 | Found Transdimensional Reconstructor 5139 | -2/Section 7 | Found Transdimensional Reconstructor 5151 | -2/Section 7 | Found Alien Artifact 5151 | -2/Section 7 | Identified Matter Drive 5162 | -2/Section 7 | Spotted B-99 Colossus 5173 | -2/Section 7 | Found Integrated Reactor 5173 | -2/Section 7 | Installed Integrated Reactor, increased core energy generation (+10) 5184 | -2/Section 7 | Found Alien Artifact 5184 | -2/Section 7 | Identified LRC Armor 5184 | -2/Section 7 | Installed LRC Armor, increased core integrity (+250) 5186 | -2/Section 7 | Found Alien Artifact 5186 | -2/Section 7 | Identified LRC Storage 5186 | -2/Section 7 | Installed LRC Storage, increased inventory capacity (+2) 5191 | -2/Section 7 | Found Alien Artifact 5191 | -2/Section 7 | Identified LRC Boosters 5191 | -2/Section 7 | Installed LRC Boosters, increased mass support (+10) 5197 | -2/Section 7 | First assault squad dispatched 5199 | -2/Section 7 | Found Integrated Dissipator 5199 | -2/Section 7 | Installed Integrated Dissipator, increased core heat dissipation (+20) 5206 | -2/Section 7 | Warped through subspace 5223 | -2/Section 7 | Found Transdimensional Reconstructor 5223 | -2/Section 7 | Warped through subspace 5241 | -2/Section 7 | Intercept squad dispatched 5246 | -2/Section 7 | Discovered new exit (range 10) 5248 | -2/Section 7 | Spotted Tracker 5249 | -2/Section 7 | Spotted Tracker 5249 | -2/Section 7 | Entered Access 5249 | -1/Access | Evolved 2 slots: Propulsion x2 5250 | -1/Access | Loaded intel: 106 machine locations 5436 | -1/Access | Found Imp. Powered Armor 5438 | -1/Access | Found Imp. Powered Armor 5459 | -1/Access | Discovered new exit (range 7) 5460 | -1/Access | Entered Command 5461 | -1/Command | Loaded intel: 58 machine locations 5622 | -1/Command | Spotted Combat Programmer 5644 | -1/Command | Met MAIN.C 5647 | -1/Command | 0b10 Conduit disabled 5665 | -1/Command | Spotted B-99 Colossus 5670 | -1/Command | Found Prototype Device 5670 | -1/Command | Identified Exp. Weapon Cycler 5673 | -1/Command | Found Exp. Force Field 5675 | -1/Command | Found Zero-point Reactor 5801 | -1/Command | Identified exit to Surface 5903 | -1/Command | Build established: Bothacker-Sprinter 5933 | -1/Command | Spotted B-99 Colossus 6007 | -1/Command | Identified Subatomic Replicator 6007 | -1/Command | Used Subatomic Replicator to replicate Microactuators 6289 | -1/Command | Build established: Scavenger-Sprinter 6336 | -1/Command | Found Prototype Ballistic Cannon 6337 | -1/Command | Identified Omega Cannon 6342 | -1/Command | Found Beam Splitter 6344 | -1/Command | Found EM Dispersion Field 6608 | -1/Command | Destroyed MAIN.C Shell 6610 | -1/Command | MAIN.C activated Command garrisons 6643 | -1/Command | Warped through subspace to slip node 6643 | -1/Command | Discovered new exit (range 5) 6648 | -1/Command | Entered Access_0 6649 | -1/Access_0 | Loaded intel: 55 machine locations 6649 | -1/Access_0 | Met Architect 6668 | -1/Access_0 | Spotted Enhanced Programmer 6688 | -1/Access_0 | Subspace Access Node disabled 6695 | -1/Access_0 | A6 warped into view 6696 | -1/Access_0 | Destroyed A6 with decrypted code from the hidden lab 6714 | -1/Access_0 | Destroyed A8 with decrypted code from the hidden lab 6734 | -1/Access_0 | Subspace Access Node disabled 6746 | -1/Access_0 | Spotted Enhanced Programmer 6752 | -1/Access_0 | Subspace Access Node disabled 6770 | -1/Access_0 | Spotted Enhanced Programmer 6770 | -1/Access_0 | Spotted Enhanced Programmer 6775 | -1/Access_0 | Subspace Access Node disabled 6782 | -1/Access_0 | Spotted Enhanced Programmer 6788 | -1/Access_0 | Spotted Enhanced Programmer 6791 | -1/Access_0 | Spotted Enhanced Programmer 6806 | -1/Access_0 | A4 warped into view 6814 | -1/Access_0 | Destroyed A4 with decrypted code from the hidden lab 6815 | -1/Access_0 | Singularity Gate disabled 6815 | -1/Access_0 | Singularity Gate disabled 6821 | -1/Access_0 | System corruption reached 10% 6892 | -1/Access_0 | Found Alien Artifact 6906 | -1/Access_0 | Lost 7 parts (1p4n2u) 6923 | -1/Access_0 | Found Alien Artifact 6928 | -1/Access_0 | Spotted Enhanced Programmer 6936 | -1/Access_0 | Spotted Enhanced Programmer 6947 | -1/Access_0 | Found Nanosword 6962 | -1/Access_0 | Core integrity fell below 50% 6967 | -1/Access_0 | Lost 5 parts (3n1u1w) 6979 | -1/Access_0 | Identified Hpw. Transdimensional Reconstructor 6979 | -1/Access_0 | Warped through subspace to slip node 6979 | -1/Access_0 | Discovered exit to Surface (range 8) 6980 | -1/Access_0 | Identified Core Expander 6980 | -1/Access_0 | Installed Core Expander, added new Propulsion slot 6982 | *** | Escaped! Last Messages --------------- 06977_ Critical hit. 06977_ Knocked back. 06977_ HV Slug penetrates Reinforced Shell. 06977_ Penetrated by HV Slug. 06977_ Acquired Field Propulsion Array. 06978_ System corrupted: Component data lost. 06978_ Penetrated by HV Slug. 06978_ Knocked back. 06978_ Penetrated by HV Slug. 06978_ HV Slug penetrates Enhanced Programmer. 06978_ Enhanced Programmer suffers critical hit. 06978_ Penetrated by Quantum Shear. 06978_ Centrium Medium Armor Plating severed. 06978_ Quantum Shear penetrates Reinforced Shell. 06979_ HV Slug penetrates Reinforced Shell. 06979_ Identified Hpw. Transdimensional Reconstructor. 06979_ Warped through subspace, drawn to slip node. 06979_ EXIT=FOUND: SURFACE 06980_ Identified Core Expander. 06980_ Core Expander installed, core expanded with Propulsion slot. Map ----- +----------------------------------------------------+ | | | | | | | | | | | | | | | | | | | | | | | | | | | | | | | | | ?????????????????????????????????????????????????? | | ?????????????????????????????????????????????????? | | ?????????????????????????????????????????????????? | | ?????????????????????????????????????????????????? | | ?????????????????????????????????????????????????? | | ?????????????????????????????????????????????????? | | ????????????????????????###??????????????????????? | | ???????????????????????## ##?????????????????????? | | ???????????????????????# #?????????????????????? | | ???????????????????????# @ #?????????????????????? | | ??????????????????????## #?????????????????????? | | ??????????????????????# #?????????????????????? | | ??????????????????????# ##?????????????????????? | | ??????????????????????## #?????????????????????? | | ??????????????????????# #?????????????????????? | | ??????????????????????# ##?????????????????????? | | ??????????????????????# ! #?????????????????????? | | ??????????????????????# ##?????????????????????? | | ??????????????????????## #??????????????????????? | | ???????????????????????####??????????????????????? | | ?????????????????????????????????????????????????? | | ?????????????????????????????????????????????????? | | ?????????????????????????????????????????????????? | | ?????????????????????????????????????????????????? | | ?????????????????????????????????????????????????? | | ?????????????????????????????????????????????????? | | ?????????????????????????????????????????????????? | | ?????????????????????????????????????????????????? | | ?????????????????????????????????????????????????? | | ?????????????????????????????????????????????????? | | ?????????????????????????????????????????????????? | | ?????????????????????????????????????????????????? | | ?????????????????????????????????????????????????? | | ?????????????????????????????????????????????????? | +----------------------------------------------------+ Best States ------------- Heat Dissipation 119 Energy Generation 73 Energy Capacity 490 Matter Stores 300 Matter Capacity 300 Sight Range 18 Terrain Scan Range 16 Terrain Scan Density 1010 ECM Strength 3 Jamming Range 12 Power Amplification 30 Additional Mass Support 9 Armor Coverage 800 Resistance: KI 25 Resistance: TH 75 Resistance: EM 75 Power Shielding 66 Propulsion Shielding 66 Weapon Shielding 66 Weapon Cycling 20 Melee Speed Boost 40 Phase Shifting 10 Evasion (%) 75 Targeting Accuracy 12 Melee Accuracy 12 Core Analysis 15 Recoil Reduction 2 Force Boost 3 Offensive Hacking 35 Defensive Hacking 35 Relay Coupler Types 323 Relay Coupler Value 5 Item Schematics ----------------- Exp. Sensor Array | -6/Data Miner | Free Lgt. Regenerative Plating | -6/Data Miner | Free Exp. Transmission Jammer | -6/Data Miner | Free Mni. Smartbomb Launcher | -6/Data Miner | Free Exp. ECM Suite | -2/Section 7 | Hacked Robot Schematics ------------------ S-27 Virus | -6/Data Miner | Free G-67 Veteran | -6/Data Miner | Free X-72 Disruptor | -6/Data Miner | Free I-47 Archangel | -6/Data Miner | Free T-07 Excavator | -3/Testing | Hacked Fabricated ------------ Mni. Smartbomb Launcher | x1 | -5/Factory S-27 Virus | x4 | -4/Armory Alien Tech Used ----------------- Integrated Reactor Core Regenerator Sigix Broadsword Integrated Dissipator Integrated Mediator Matter Drive LRC Armor LRC Storage LRC Boosters Transdimensional Reconstructor Subatomic Replicator High-powered Transdimensional Reconstructor Core Expander Achievements -------------- None Challenges ------------ None Game ------ Seed RegenerativeBarrageMapper Manual? 0 Play Time 02:45:53 Cumulative 1919.2 hours Start 2021.02.17 @ 22:47:37 End 2021.02.18 @ 01:43:11 Sessions 1 Manual Loads 0 Difficulty Rogue Special Mode None Game No. 2557 Rogue 2549 Adventurer 0 Explorer 8 Win Type 0 Total 208 Types 43/27/82/3/3/5/42/2/1 Lore% 100 Gallery% 99 Achievement% 100 Wizard Run 0 Options --------- ASCII 0 Keyboard 1 Movement Numpad Keybinds 1 Fullscreen 1 Font 18/SmallcapsGlow Map View 76x50 Tactical HUD 1 Map Filters NONE Filters NONE Steam 1 RUN: 44f2bd5b-a6c1-4892-b643-b60efc5d60cc